lending/lending_fUSD_20250508
["ID","MTS","AMOUNT","RATE_DAILY","PERIOD"]
[360293983,1746719446050,-417.487208,0.000258,7]
[360293984,1746719446060,-352.841271,0.000258,7]
[360293985,1746719446070,-352.841271,0.000258,7]
[360293986,1746719446080,-417.487208,0.000258,7]
[360293988,1746719446089,-151.0,0.000258,7]
[360293990,1746719446099,-920.173885,0.000258,7]
[360293992,1746719446108,-615.181611,0.000258,7]
[360293993,1746719446121,-151.0,0.000258,7]
[360293996,1746719446131,-615.181611,0.000258,7]
[360293998,1746719446141,-151.0,0.000258,7]
[360293999,1746719446151,-151.0,0.000258,7]
[360294001,1746719446160,-151.0,0.000258,7]
[360294002,1746719446170,-151.0,0.000258,7]
[360294003,1746719446179,-637.076514,0.000258,7]
[360294004,1746719446189,-637.076514,0.000258,7]
[360294005,1746719446199,-151.0,0.000258,7]
[360294006,1746719446209,-756.777036,0.000258,7]
[360294007,1746719446220,-151.0,0.000258,7]
[360294009,1746719446230,-756.777036,0.000258,7]
[360294011,1746719446239,-877.5,0.00025851,2]
[360294013,1746719446251,-3000.0,0.0002589,7]
[360294015,1746719446260,-3000.0,0.00026,2]
[360294016,1746719446270,-16513.72147654,0.00026118,2]
[360294017,1746719446280,-3292.0,0.00026146,2]
[360294018,1746719446292,-36403.1348345,0.00026148,3]
[360294019,1746719446301,-151.0,0.00026158,7]
[360294020,1746719446311,-151.0,0.00026158,7]
[360294021,1746719446321,-151.0,0.00026158,7]
[360294022,1746719446330,-151.0,0.00026158,7]
[360294023,1746719446340,-167.945465,0.00026158,7]
[360294024,1746719446349,-151.0,0.00026158,7]
[360294025,1746719446358,-151.0,0.00026158,7]
[360294026,1746719446370,-151.0,0.00026158,7]
[360294027,1746719446381,-1302.0,0.00026178,2]
[360294028,1746719446391,-928.0,0.00026178,2]
[360294029,1746719446401,-798.0,0.00026178,2]
[360294030,1746719446411,-1452.0,0.00026178,2]
[360294031,1746719446420,-1245.0,0.00026178,2]
[360294032,1746719446429,-551.0,0.00026178,2]
[360294033,1746719446439,-916.0,0.00026178,2]
[360294034,1746719446448,-4020.0,0.00026178,2]
[360294035,1746719446458,-153.0,0.00026178,2]
[360294036,1746719446467,-150.0,0.00026366,2]
[360294037,1746719446477,-151.0,0.0002639,7]
[360294038,1746719446486,-151.0,0.0002639,7]
[360294039,1746719446495,-151.0,0.0002639,7]
[360294040,1746719446505,-151.311881,0.0002639,7]
[360294041,1746719446514,-151.311881,0.0002639,7]
[360294042,1746719446524,-151.0,0.0002639,7]
[360294043,1746719446534,-248.71531821,0.00026433,2]
[360294044,1746719446543,-151.0,0.00026478,7]
[360294045,1746719446553,-875.541823,0.00026478,7]
[360294046,1746719446562,-875.541823,0.00026478,7]
[360294047,1746719446572,-263.69625483,0.00026545,2]
[360294048,1746719446581,-151.0,0.00026576,7]
[360294049,1746719446591,-3000.0,0.00026712,7]
[360294050,1746719446601,-1400.0,0.00026712,7]
[360294051,1746719446610,-150.0,0.00026733,2]
[360294052,1746719446622,-151.0,0.000268,7]
[360294053,1746719446631,-151.0,0.000268,7]
[360294054,1746719446641,-151.0,0.000268,7]
[360294055,1746719446651,-151.0,0.000268,7]
[360294056,1746719446660,-151.0,0.000268,7]
[360294057,1746719446670,-151.0,0.000268,7]
[360294058,1746719446679,-151.0,0.000268,7]
[360294059,1746719446689,-151.0,0.000268,7]
[360294060,1746719446699,-151.0,0.00026801,7]
[360294061,1746719446708,-151.0,0.00026801,7]
[360294062,1746719446718,-151.0,0.00026801,7]
[360294063,1746719446727,-195.95389,0.00026801,7]
[360294064,1746719446737,-195.95389,0.00026801,7]
[360294065,1746719446747,-151.0,0.00026836,7]
[360294066,1746719446757,-165.129347,0.00026836,7]
[360294067,1746719446767,-151.0,0.00026836,7]
[360294068,1746719446777,-151.0,0.00026836,7]
[360294069,1746719446786,-187.33,0.00026849,2]
[360294070,1746719446796,-150.0,0.00026951,2]
[360294071,1746719446806,-3000.0,0.00027,2]
[360294072,1746719446816,-500.0,0.00027,2]
[360294073,1746719446826,-200.814183,0.00027003,7]
[360294074,1746719446836,-151.0,0.00027003,7]
[360294075,1746719446846,-200.814183,0.00027003,7]
[360294076,1746719446856,-261.851639,0.00027003,7]
[360294077,1746719446868,-151.0,0.00027003,7]
[360294078,1746719446878,-151.0,0.00027003,7]
[360294079,1746719446889,-151.0,0.00027003,7]
[360294080,1746719446899,-176.733319,0.00027003,7]
[360294081,1746719446909,-176.733319,0.00027003,7]
[360294082,1746719446919,-150.0,0.0002703,2]
[360294083,1746719446930,-150.0,0.00027055,2]
[360294084,1746719446939,-150.0,0.00027137,2]
[360294085,1746719446950,-150.0,0.00027236,2]
[360294086,1746719446960,-162.43,0.00027236,2]
[360294087,1746719446969,-1000.0,0.00027252,2]
[360294088,1746719446979,-249.0940805,0.00027266,2]
[360294089,1746719446989,-666.0,0.00027376,2]
[360294090,1746719446999,-666.0,0.00027376,2]
[360294091,1746719447008,-666.0,0.00027376,2]
[360294092,1746719447018,-597.61022306,0.00027376,2]
[360294093,1746719447028,-36403.1348345,0.00027387,3]
[360294094,1746719447038,-151.0,0.00027387,7]
[360294095,1746719447048,-151.0,0.00027387,7]
[360294096,1746719447058,-1000.0,0.00027397,2]
[360294097,1746719447068,-1000.0,0.00027397,2]
[360294098,1746719447077,-1000.0,0.00027397,2]
[360294099,1746719447088,-1000.0,0.00027397,2]
[360294100,1746719447097,-1000.0,0.00027397,2]
[360294101,1746719447107,-1062.16495862,0.00027397,2]
[360294102,1746719447121,-151.0,0.00027397,7]
[360294103,1746719447131,-151.0,0.00027397,7]
[360294104,1746719447140,-213.199781,0.00027397,7]
[360294105,1746719447150,-213.199781,0.00027397,7]
[360294106,1746719447160,-151.0,0.00027397,7]
[360294107,1746719447169,-151.0,0.00027397,7]
[360294108,1746719447179,-219.418152,0.00027397,7]
[360294109,1746719447188,-1212.947035,0.00027397,7]
[360294110,1746719447198,-249.082072,0.00027397,7]
[360294111,1746719447208,-219.418152,0.00027397,7]
[360294112,1746719447220,-1212.947035,0.00027397,7]
[360294113,1746719447230,-249.082072,0.00027397,7]
[360294114,1746719447240,-184.822269,0.00027397,7]
[360294115,1746719447250,-157.003663,0.00027397,7]
[360294116,1746719447260,-157.003663,0.00027397,7]
[360294117,1746719447269,-300.0,0.00027397,2]
[360294118,1746719447278,-300.0,0.00027397,2]
[360294119,1746719447288,-1000.0,0.00027397,2]
[360294120,1746719447298,-174.84,0.00027397,10]
[360294121,1746719447308,-522.0,0.000274,2]
[360294122,1746719447318,-377.0,0.000274,2]
[360294123,1746719447328,-1200.0,0.000274,2]
[360294124,1746719447337,-150.0,0.00027445,2]
[360294125,1746719447347,-150.0,0.00027445,2]
[360294126,1746719447355,-1000.0,0.00027447,2]
[360294127,1746719447365,-150.0,0.0002746,2]
[360294128,1746719447376,-150.0,0.00027533,2]
[360294129,1746719447386,-3000.0,0.00027534,7]
[360294130,1746719447396,-150.0,0.00027567,2]
[360294131,1746719447405,-150.0,0.0002758,2]
[360294132,1746719447415,-150.0,0.00027591,2]
[360294133,1746719447427,-150.0,0.00027614,2]
[360294134,1746719447439,-150.0,0.00027678,2]
[360294135,1746719447450,-150.0,0.00027695,2]
[360294136,1746719447461,-150.0,0.00027704,2]
[360294137,1746719447470,-150.0,0.00027732,2]
[360294138,1746719447481,-6989.70306233,0.00027734,2]
[360294139,1746719447491,-554.1,0.00027738,2]
[360294140,1746719447502,-150.0,0.00027776,2]
[360294141,1746719447512,-257.91778498,0.00027802,2]
[360294142,1746719447522,-391.0,0.0002783,15]
[360294143,1746719447534,-3157.2566356,0.00027838,2]
[360294144,1746719447550,-1873.9655343,0.00027838,2]
[360294145,1746719447562,-472.837485,0.00027838,2]
[360294146,1746719447671,-2658.95581054,0.00027838,2]
[360294147,1746719447683,-8350.7060111,0.00027838,2]
[360294148,1746719447693,-150.0,0.00027854,2]
[360294149,1746719447702,-150.0,0.00027864,2]
[360294150,1746719447711,-150.0,0.00027865,2]
[360294151,1746719447721,-150.0,0.00027923,2]
[360294152,1746719447731,-152.0,0.00027929,3]
[360294153,1746719447741,-150.0,0.00027942,2]
[360294154,1746719447751,-1810.5,0.00027945,3]
[360294155,1746719447760,-150.0,0.00027954,2]
[360294156,1746719447769,-150.0,0.00027967,2]
[360294157,1746719447779,-3000.0,0.00028,2]
[360294158,1746719447789,-500.0,0.00028,2]
[360294159,1746719447798,-150.0,0.00028014,2]
[360294160,1746719447809,-200.13028218,0.00028037,14]
[360294161,1746719447818,-150.0,0.0002804,2]
[360294162,1746719447828,-150.0,0.00028045,2]
[360294163,1746719447838,-150.0,0.00028079,2]
[360294164,1746719447847,-151.0,0.0002809,7]
[360294165,1746719447857,-151.0,0.0002809,7]
[360294166,1746719447866,-151.0,0.0002809,7]
[360294167,1746719447877,-417.487208,0.0002809,7]
[360294168,1746719447887,-352.841271,0.0002809,7]
[360294169,1746719447895,-352.841271,0.0002809,7]
[360294170,1746719447905,-417.487208,0.0002809,7]
[360294171,1746719447916,-920.173885,0.0002809,7]
[360294172,1746719447988,-285.034474,0.0002809,7]
[360294173,1746719447998,-920.173885,0.0002809,7]
[360294174,1746719448007,-615.181611,0.0002809,7]
[360294175,1746719448017,-615.181611,0.0002809,7]
[360294176,1746719448027,-151.0,0.0002809,7]
[360294177,1746719448036,-151.0,0.0002809,7]
[360294178,1746719448046,-151.0,0.0002809,7]
[360294179,1746719448056,-151.0,0.0002809,7]
[360294180,1746719448065,-151.0,0.0002809,7]
[360294181,1746719448075,-637.076514,0.0002809,7]
[360294182,1746719448085,-637.076514,0.0002809,7]
[360294183,1746719448094,-151.0,0.0002809,7]
[360294184,1746719448103,-756.777036,0.0002809,7]
[360294185,1746719448113,-151.0,0.0002809,7]
[360294186,1746719448124,-756.777036,0.0002809,7]
[360294187,1746719448135,-2823.44754307,0.000281,2]
[360294188,1746719448144,-877.5,0.00028114,2]
[360294189,1746719448154,-300.0,0.00028123,10]
[360294190,1746719448163,-150.0,0.00028158,2]
[360294191,1746719448172,-150.0,0.00028173,2]
[360294192,1746719448182,-150.0,0.00028175,2]
[360294193,1746719448192,-150.0,0.00028192,2]
[360294194,1746719448202,-150.0,0.00028195,2]
[360294195,1746719448214,-187.33,0.00028218,2]
[360294196,1746719448223,-150.0,0.0002824,2]
[360294197,1746719448233,-150.0,0.00028268,2]
[360294198,1746719448243,-150.0,0.0002827,2]
[360294199,1746719448253,-150.0,0.00028274,2]
[360294200,1746719448262,-150.0,0.00028294,2]
[360294201,1746719448273,-150.0,0.00028296,2]
[360294202,1746719448287,-150.0,0.000283,2]
[360294203,1746719448298,-3000.0,0.00028356,7]
[360294204,1746719448307,-1400.0,0.00028356,7]
[360294205,1746719448317,-150.0,0.00028398,2]
[360294206,1746719448326,-150.0,0.00028427,2]
[360294207,1746719448336,-764.5,0.00028449,15]
[360294208,1746719448346,-151.0,0.0002846,7]
[360294209,1746719448355,-151.0,0.0002846,7]
[360294210,1746719448365,-151.0,0.0002846,7]
[360294211,1746719448378,-174.359623,0.0002846,7]
[360294212,1746719448388,-151.0,0.0002846,7]
[360294213,1746719448398,-151.0,0.0002846,7]
[360294214,1746719448408,-151.0,0.0002846,7]
[360294215,1746719448419,-151.0,0.0002847,7]
[360294216,1746719448428,-166.560921,0.0002847,7]
[360294217,1746719448439,-162.100158,0.0002847,7]
[360294218,1746719448449,-151.0,0.0002847,7]
[360294219,1746719448459,-151.0,0.0002847,7]
[360294220,1746719448468,-195.95389,0.0002847,7]
[360294221,1746719448478,-195.95389,0.0002847,7]
[360294222,1746719448487,-151.0,0.0002847,7]
[360294223,1746719448497,-207.496147,0.0002847,7]
[360294224,1746719448507,-151.0,0.0002847,7]
[360294225,1746719448516,-500.0,0.00028479,10]
[360294226,1746719448526,-151.0,0.0002848,7]
[360294227,1746719448536,-151.0,0.0002848,7]
[360294228,1746719448545,-291.112963,0.0002848,7]
[360294229,1746719448555,-151.0,0.0002848,7]
[360294230,1746719448565,-151.0,0.0002848,7]
[360294231,1746719448575,-151.0,0.0002848,7]
[360294232,1746719448584,-151.0,0.0002848,7]
[360294233,1746719448594,-151.0,0.0002848,7]
[360294234,1746719448603,-151.0,0.0002848,7]
[360294235,1746719448613,-151.0,0.0002848,7]
[360294236,1746719448625,-151.311881,0.0002848,7]
[360294237,1746719448635,-151.311881,0.0002848,7]
[360294238,1746719448644,-151.0,0.0002848,7]
[360294239,1746719448655,-72806.2696689,0.0002848,3]
[360294240,1746719448665,-150.0,0.00028485,2]
[360294241,1746719448675,-189.725028,0.0002849,7]
[360294242,1746719448685,-253.796874,0.0002849,7]
[360294243,1746719448695,-151.0,0.0002849,7]
[360294244,1746719448706,-195.95389,0.0002849,7]
[360294245,1746719448717,-195.95389,0.0002849,7]
[360294246,1746719448727,-151.0,0.0002849,7]
[360294247,1746719448737,-151.0,0.0002849,7]
[360294248,1746719448747,-151.0,0.0002849,7]
[360294249,1746719448756,-151.0,0.0002849,7]
[360294250,1746719448766,-213.199781,0.0002849,7]
[360294251,1746719448776,-213.199781,0.0002849,7]
[360294252,1746719448785,-151.0,0.0002849,7]
[360294253,1746719448794,-151.0,0.0002849,7]
[360294254,1746719448804,-219.418152,0.0002849,7]
[360294255,1746719448813,-1212.947035,0.0002849,7]
[360294256,1746719448823,-249.082072,0.0002849,7]
[360294257,1746719448832,-219.418152,0.0002849,7]
[360294258,1746719448841,-1212.947035,0.0002849,7]
[360294259,1746719448851,-249.082072,0.0002849,7]
[360294260,1746719448860,-176.845882,0.0002849,7]
[360294261,1746719448871,-157.003663,0.0002849,7]
[360294262,1746719448884,-157.003663,0.0002849,7]
[360294263,1746719448894,-192.030174,0.0002849,7]
[360294264,1746719448904,-151.0,0.0002849,7]
[360294265,1746719448914,-151.0,0.0002849,7]
[360294266,1746719448924,-151.0,0.0002849,7]
[360294267,1746719448934,-151.0,0.0002849,7]
[360294268,1746719448944,-151.0,0.0002849,7]
[360294269,1746719448955,-151.0,0.0002849,7]
[360294270,1746719448964,-151.0,0.0002849,7]
[360294271,1746719448974,-151.0,0.0002849,7]
[360294272,1746719448985,-260.576368,0.0002849,7]
[360294273,1746719448995,-417.487208,0.0002849,7]
[360294274,1746719449005,-352.841271,0.0002849,7]
[360294275,1746719449015,-352.841271,0.0002849,7]
[360294276,1746719449026,-417.487208,0.0002849,7]
[360294277,1746719449036,-920.173885,0.0002849,7]
[360294278,1746719449046,-920.173885,0.0002849,7]
[360294279,1746719449056,-615.181611,0.0002849,7]
[360294280,1746719449066,-615.181611,0.0002849,7]
[360294281,1746719449075,-151.0,0.0002849,7]
[360294282,1746719449086,-151.0,0.0002849,7]
[360294283,1746719449096,-72806.2696689,0.0002849,3]
[360294284,1746719449105,-198.550574,0.0002849,7]
[360294285,1746719449115,-151.311881,0.0002849,7]
[360294286,1746719449127,-151.311881,0.0002849,7]
[360294287,1746719449136,-151.0,0.0002849,7]
[360294288,1746719449147,-151.0,0.0002849,7]
[360294289,1746719449156,-151.0,0.0002849,7]
[360294290,1746719449166,-151.0,0.0002849,7]
[360294291,1746719449176,-637.076514,0.0002849,7]
[360294292,1746719449186,-637.076514,0.0002849,7]
[360294293,1746719449196,-151.0,0.0002849,7]
[360294294,1746719449211,-875.541823,0.0002849,7]
[360294295,1746719449221,-756.777036,0.0002849,7]
[360294296,1746719449230,-151.0,0.0002849,7]
[360294297,1746719449240,-875.541823,0.0002849,7]
[360294298,1746719449250,-756.777036,0.0002849,7]
[360294299,1746719449260,-160.18375718,0.00028493,2]
[360294300,1746719449270,-150.0,0.00028498,2]
[360294301,1746719449280,-500.0,0.00028499,10]
[360294302,1746719449292,-500.0,0.00028499,10]
[360294303,1746719449301,-500.0,0.00028499,10]
[360294304,1746719449311,-135163.87094967,0.000285,5]
[360294305,1746719449321,-151.0,0.000285,7]
[360294306,1746719449331,-151.0,0.000285,7]
[360294307,1746719449341,-151.0,0.000285,7]
[360294308,1746719449351,-200.814183,0.000285,7]
[360294309,1746719449361,-151.0,0.000285,7]
[360294310,1746719449372,-200.814183,0.000285,7]
[360294311,1746719449383,-151.0,0.000285,7]
[360294312,1746719449392,-300.158922,0.000285,7]
[360294313,1746719449403,-151.0,0.000285,7]
[360294314,1746719449413,-176.733319,0.000285,7]
[360294315,1746719449422,-176.733319,0.000285,7]
[360294316,1746719449432,-151.0,0.000285,7]
[360294317,1746719449442,-256.405876,0.000285,7]
[360294318,1746719449452,-151.0,0.000285,7]
[360294319,1746719449462,-151.0,0.000285,7]
[360294320,1746719449472,-151.0,0.000285,7]
[360294321,1746719449482,-151.0,0.000285,7]
[360294322,1746719449491,-151.0,0.000285,7]
[360294323,1746719449501,-875.541823,0.000285,7]
[360294324,1746719449510,-875.541823,0.000285,7]
[360294325,1746719449520,-150.0,0.00028502,2]
[360294326,1746719449530,-150.0,0.00028507,2]
[360294327,1746719449540,-150.0,0.00028531,2]
[360294328,1746719449550,-150.0,0.00028533,2]
[360294329,1746719449560,-4609.0,0.00028609,2]
[360294330,1746719449570,-160.18375718,0.0002863,2]
[360294331,1746719449580,-150.0,0.00028632,2]
[360294332,1746719449590,-150.0,0.00028645,2]
[360294333,1746719449600,-151.0,0.00028684,7]
[360294334,1746719449610,-151.0,0.00028684,7]
[360294335,1746719449621,-151.311881,0.00028684,7]
[360294336,1746719449631,-151.311881,0.00028684,7]
[360294337,1746719449642,-151.0,0.00028684,7]
[360294338,1746719449652,-263.69625483,0.00028691,2]
[360294339,1746719449662,-150.0,0.00028695,2]
[360294340,1746719449673,-151.0,0.000287,7]
[360294341,1746719449683,-6324.06,0.000287,2]
[360294342,1746719449692,-152.0,0.00028708,4]
[360294343,1746719449702,-150.0,0.00028733,2]
[360294344,1746719449712,-1326.33,0.00028751,2]
[360294345,1746719449721,-160.18375718,0.00028767,2]
[360294346,1746719449731,-1000.0,0.0002877,7]
[360294347,1746719449741,-1000.0,0.0002877,7]
[360294348,1746719449751,-1000.0,0.0002877,7]
[360294349,1746719449761,-1000.0,0.0002877,7]
[360294350,1746719449771,-1000.0,0.0002877,7]
[360294351,1746719449781,-259.0,0.0002877,7]
[360294352,1746719449792,-195.95389,0.0002877,7]
[360294353,1746719449801,-195.95389,0.0002877,7]
[360294354,1746719449811,-230.381071,0.0002877,7]
[360294355,1746719449821,-151.0,0.0002877,7]
[360294356,1746719449831,-213.199781,0.0002877,7]
[360294357,1746719449841,-213.199781,0.0002877,7]
[360294358,1746719449851,-151.0,0.0002877,7]
[360294359,1746719449860,-151.0,0.0002877,7]
[360294360,1746719449871,-219.418152,0.0002877,7]
[360294361,1746719449881,-1212.947035,0.0002877,7]
[360294362,1746719449891,-249.082072,0.0002877,7]
[360294363,1746719449900,-219.418152,0.0002877,7]
[360294364,1746719449910,-1212.947035,0.0002877,7]
[360294365,1746719449920,-249.082072,0.0002877,7]
[360294366,1746719449930,-157.003663,0.0002877,7]
[360294367,1746719449939,-157.003663,0.0002877,7]
[360294368,1746719449949,-151.0,0.0002877,7]
[360294369,1746719449959,-161.091786,0.0002877,7]
[360294370,1746719449970,-151.0,0.0002877,7]
[360294371,1746719449980,-352.841271,0.0002877,7]
[360294372,1746719449990,-352.841271,0.0002877,7]
[360294373,1746719450001,-615.181611,0.0002877,7]
[360294374,1746719450011,-615.181611,0.0002877,7]
[360294375,1746719450020,-151.0,0.0002877,7]
[360294376,1746719450031,-255.64725,0.0002877,7]
[360294377,1746719450041,-151.0,0.0002877,7]
[360294378,1746719450052,-151.0,0.0002877,7]
[360294379,1746719450062,-756.777036,0.0002877,7]
[360294380,1746719450072,-151.0,0.0002877,7]
[360294381,1746719450081,-756.777036,0.0002877,7]
[360294382,1746719450091,-151.0,0.00028773,7]
[360294383,1746719450101,-175.719901,0.00028773,7]
[360294384,1746719450111,-151.0,0.00028773,7]
[360294385,1746719450126,-151.0,0.00028773,7]
[360294386,1746719450136,-151.0,0.00028773,7]
[360294387,1746719450145,-417.487208,0.00028773,7]
[360294388,1746719450155,-417.487208,0.00028773,7]
[360294389,1746719450165,-920.173885,0.00028773,7]
[360294390,1746719450174,-920.173885,0.00028773,7]
[360294391,1746719450184,-151.0,0.00028773,7]
[360294392,1746719450194,-637.076514,0.00028773,7]
[360294393,1746719450204,-637.076514,0.00028773,7]
[360294394,1746719450220,-150.0,0.00028788,2]
[360294395,1746719450235,-150.05831307,0.00028806,2]
[360294396,1746719450245,-150.0,0.0002881,2]
[360294397,1746719450255,-150.0,0.00028815,2]
[360294398,1746719450266,-150.0,0.00028816,2]
[360294399,1746719450276,-152.12196414,0.00028817,2]
[360294400,1746719450286,-150.0,0.00028818,2]
[360294401,1746719450296,-36403.1348345,0.00028827,3]
[360294402,1746719450305,-51597.5399999,0.00028836,2]
[360294403,1746719450315,-72806.2696689,0.00028837,3]
[360294404,1746719450325,-109209.404503,0.00028846,3]
[360294405,1746719450335,-5319.5495335,0.00028847,2]
[360294406,1746719450345,-151.0,0.00028847,7]
[360294407,1746719450354,-151.0,0.00028847,7]
[360294408,1746719450363,-352.841271,0.00028847,7]
[360294409,1746719450378,-417.487208,0.00028847,7]
[360294410,1746719450388,-352.841271,0.00028847,7]
[360294411,1746719450397,-417.487208,0.00028847,7]
[360294412,1746719450407,-920.173885,0.00028847,7]
[360294413,1746719450417,-920.173885,0.00028847,7]
[360294414,1746719450427,-615.181611,0.00028847,7]
[360294415,1746719450437,-615.181611,0.00028847,7]
[360294416,1746719450448,-151.0,0.00028847,7]
[360294417,1746719450458,-151.0,0.00028847,7]
[360294418,1746719450467,-151.0,0.00028847,7]
[360294419,1746719450478,-151.0,0.00028847,7]
[360294420,1746719450488,-637.076514,0.00028847,7]
[360294421,1746719450499,-637.076514,0.00028847,7]
[360294422,1746719450509,-151.0,0.00028847,7]
[360294423,1746719450519,-875.541823,0.00028847,7]
[360294424,1746719450528,-756.777036,0.00028847,7]
[360294425,1746719450538,-151.0,0.00028847,7]
[360294426,1746719450548,-875.541823,0.00028847,7]
[360294427,1746719450558,-756.777036,0.00028847,7]
[360294428,1746719450568,-150.0,0.00028855,2]
[360294429,1746719450578,-151.0,0.00028856,7]
[360294430,1746719450589,-151.0,0.00028856,7]
[360294431,1746719450600,-193.203939,0.00028856,7]
[360294432,1746719450610,-352.841271,0.00028856,7]
[360294433,1746719450622,-352.841271,0.00028856,7]
[360294434,1746719450632,-417.487208,0.00028856,7]
[360294435,1746719450642,-352.841271,0.00028856,7]
[360294436,1746719450652,-417.487208,0.00028856,7]
[360294437,1746719450662,-352.841271,0.00028856,7]
[360294438,1746719450672,-352.841271,0.00028856,7]
[360294439,1746719450682,-352.841271,0.00028856,7]
[360294440,1746719450692,-417.487208,0.00028856,7]
[360294441,1746719450702,-417.487208,0.00028856,7]
[360294442,1746719450713,-920.173885,0.00028856,7]
[360294443,1746719450724,-920.173885,0.00028856,7]
[360294444,1746719450734,-920.173885,0.00028856,7]
[360294445,1746719450881,-920.173885,0.00028856,7]
[360294446,1746719450907,-615.181611,0.00028856,7]
[360294447,1746719450918,-615.181611,0.00028856,7]
[360294448,1746719450928,-615.181611,0.00028856,7]
[360294449,1746719450938,-615.181611,0.00028856,7]
[360294450,1746719450948,-151.0,0.00028856,7]
[360294451,1746719450957,-151.0,0.00028856,7]
[360294452,1746719450967,-615.181611,0.00028856,7]
[360294453,1746719450976,-615.181611,0.00028856,7]
[360294454,1746719450986,-151.0,0.00028856,7]
[360294455,1746719450995,-209.353175,0.00028856,7]
[360294456,1746719451005,-166.045689,0.00028856,7]
[360294457,1746719451014,-151.0,0.00028856,7]
[360294458,1746719451024,-151.0,0.00028856,7]
[360294459,1746719451033,-637.076514,0.00028856,7]
[360294460,1746719451043,-637.076514,0.00028856,7]
[360294461,1746719451052,-637.076514,0.00028856,7]
[360294462,1746719451062,-637.076514,0.00028856,7]
[360294463,1746719451071,-151.0,0.00028856,7]
[360294464,1746719451080,-151.0,0.00028856,7]
[360294465,1746719451091,-151.0,0.00028856,7]
[360294466,1746719451101,-875.541823,0.00028856,7]
[360294467,1746719451111,-875.541823,0.00028856,7]
[360294468,1746719451121,-151.0,0.00028856,7]
[360294469,1746719451131,-875.541823,0.00028856,7]
[360294470,1746719451140,-756.777036,0.00028856,7]
[360294471,1746719451149,-210.725003,0.00028856,7]
[360294472,1746719451158,-756.777036,0.00028856,7]
[360294473,1746719451168,-756.777036,0.00028856,7]
[360294474,1746719451177,-875.541823,0.00028856,7]
[360294475,1746719451186,-875.541823,0.00028856,7]
[360294476,1746719451195,-875.541823,0.00028856,7]
[360294477,1746719451208,-756.777036,0.00028856,7]
[360294478,1746719451218,-756.777036,0.00028856,7]
[360294479,1746719451228,-756.777036,0.00028856,7]
[360294480,1746719451238,-151.0,0.00028867,7]
[360294481,1746719451249,-151.0,0.00028867,7]
[360294482,1746719451259,-151.0,0.00028867,7]
[360294483,1746719451269,-151.0,0.00028867,7]
[360294484,1746719451281,-151.0,0.00028867,7]
[360294485,1746719451293,-417.487208,0.00028867,7]
[360294486,1746719451302,-417.487208,0.00028867,7]
[360294487,1746719451312,-920.173885,0.00028867,7]
[360294488,1746719451322,-920.173885,0.00028867,7]
[360294489,1746719451331,-151.311881,0.00028867,7]
[360294490,1746719451340,-151.311881,0.00028867,7]
[360294491,1746719451349,-151.0,0.00028867,7]
[360294492,1746719451358,-637.076514,0.00028867,7]
[360294493,1746719451368,-637.076514,0.00028867,7]